[Event "January 2 Late 2024"]
[Site "https://www.chess.com"]
[Date "2024.01.02"]
[Round "9"]
[White "Dinu, Dumitru-Daniel"]
[Black "CRObliterator"]
[Result "0-1"]
[Board "93"]
[TimeControl "180+1"]
[WhiteFideId "1208403"]
[WhiteElo "2517"]
[BlackElo "2374"]
[WhiteTeam "ROU"]
[WhiteClock "0:00:11"]
[BlackClock "0:00:14"]

1. e4 {[%clk 0:03:00]}  e5 {[%clk 0:02:58]} 2. Nf3 {[%clk 0:03:00]}  Nc6 {[%clk 0:02:58]} 3. Nc3 {[%clk 0:02:59]}  Nf6 {[%clk 0:02:57]} 4. d4 {[%clk 0:02:59]}  exd4 {[%clk 0:02:54]} 5. Nxd4 {[%clk 0:02:58]}  Bb4 {[%clk 0:02:55]} 6. Nxc6 {[%clk 0:02:58]}  bxc6 {[%clk 0:02:56]} 7. Bd3 {[%clk 0:02:59]}  d5 {[%clk 0:02:55]} 8. Bd2 {[%clk 0:02:59]}  O-O {[%clk 0:02:49]} 9. O-O {[%clk 0:02:57]}  Bg4 {[%clk 0:02:31]} 10. Qc1 {[%clk 0:02:55]}  Bxc3 {[%clk 0:02:23]} 11. Bxc3 {[%clk 0:02:54]}  Nxe4 {[%clk 0:02:19]} 12. Bxe4 {[%clk 0:02:53]}  dxe4 {[%clk 0:02:20]} 13. Qf4 {[%clk 0:02:51]}  f5 {[%clk 0:02:01]} 14. Qe5 {[%clk 0:02:37]}  Rf7 {[%clk 0:01:55]} 15. h3 {[%clk 0:02:31]}  Bh5 {[%clk 0:01:42]} 16. Kh1 {[%clk 0:02:24]}  Qd6 {[%clk 0:01:14]} 17. Qa5 {[%clk 0:02:14]}  Qh6 {[%clk 0:00:49]} 18. Qe5 {[%clk 0:02:07]}  Qd6 {[%clk 0:00:40]} 19. Qa5 {[%clk 0:02:07]}  Re8 {[%clk 0:00:27]} 20. Qxa7 {[%clk 0:01:38]}  f4 {[%clk 0:00:19]} 21. Qd4 {[%clk 0:01:31]}  Qh6 {[%clk 0:00:13]} 22. Rae1 {[%clk 0:01:19]}  Bf3 {[%clk 0:00:12]} 23. gxf3 {[%clk 0:01:04]}  Qxh3+ {[%clk 0:00:12]} 24. Kg1 {[%clk 0:01:04]}  Re6 {[%clk 0:00:12]} 25. Qxe4 {[%clk 0:00:32]}  Rxe4 {[%clk 0:00:07]} 26. Rxe4 {[%clk 0:00:32]}  Rf5 {[%clk 0:00:06]} 27. Re5 {[%clk 0:00:20]}  Rxe5 {[%clk 0:00:06]} 28. Bxe5 {[%clk 0:00:21]}  Qxf3 {[%clk 0:00:07]} 29. Re1 {[%clk 0:00:21]}  Qg4+ {[%clk 0:00:07]} 30. Kf1 {[%clk 0:00:21]}  f3 {[%clk 0:00:07]} 31. Re3 {[%clk 0:00:21]}  Qc4+ {[%clk 0:00:06]} 32. Ke1 {[%clk 0:00:19]}  Qxc2 {[%clk 0:00:07]} 33. Rxf3 {[%clk 0:00:15]}  Qb1+ {[%clk 0:00:07]} 34. Ke2 {[%clk 0:00:15]}  Qxa2 {[%clk 0:00:08]} 35. Bc3 {[%clk 0:00:13]}  Qc4+ {[%clk 0:00:08]} 36. Ke1 {[%clk 0:00:12]}  h5 {[%clk 0:00:09]} 37. Rg3 {[%clk 0:00:12]}  Qe6+ {[%clk 0:00:08]} 38. Kf1 {[%clk 0:00:12]}  Qe7 {[%clk 0:00:08]} 39. Kg2 {[%clk 0:00:09]}  g5 {[%clk 0:00:08]} 40. Bd2 {[%clk 0:00:07]}  g4 {[%clk 0:00:08]} 41. Re3 {[%clk 0:00:07]}  Qf7 {[%clk 0:00:08]} 42. Bc3 {[%clk 0:00:07]}  Qd5+ {[%clk 0:00:08]} 43. Kg1 {[%clk 0:00:07]}  Qd1+ {[%clk 0:00:08]} 44. Kg2 {[%clk 0:00:07]}  h4 {[%clk 0:00:09]} 45. Re8+ {[%clk 0:00:06]}  Kf7 {[%clk 0:00:09]} 46. Re5 {[%clk 0:00:07]}  Qf3+ {[%clk 0:00:09]} 47. Kg1 {[%clk 0:00:07]}  h3 {[%clk 0:00:09]} 48. Kf1 {[%clk 0:00:06]}  h2 {[%clk 0:00:08]} 49. Rh5 {[%clk 0:00:06]}  h1=Q+ {[%clk 0:00:08]} 50. Rxh1 {[%clk 0:00:07]}  Qxh1+ {[%clk 0:00:09]} 51. Ke2 {[%clk 0:00:08]}  Qf3+ {[%clk 0:00:10]} 52. Kf1 {[%clk 0:00:09]}  Qd5 {[%clk 0:00:10]} 53. Bd4 {[%clk 0:00:10]}  Ke6 {[%clk 0:00:10]} 54. Be3 {[%clk 0:00:10]}  Kf5 {[%clk 0:00:11]} 55. Ke2 {[%clk 0:00:10]}  Qf3+ {[%clk 0:00:12]} 56. Kd3 {[%clk 0:00:11]}  Qe4+ {[%clk 0:00:11]} 57. Kc3 {[%clk 0:00:11]}  Qd5 {[%clk 0:00:11]} 58. b4 {[%clk 0:00:11]}  Ke4 {[%clk 0:00:12]} 59. Bc5 {[%clk 0:00:11]}  Kf3 {[%clk 0:00:11]} 60. Be3 {[%clk 0:00:11]}  Qe4 {[%clk 0:00:11]} 61. Bc5 {[%clk 0:00:11]}  Qe2 {[%clk 0:00:12]} 62. Kb3 {[%clk 0:00:11]}  Qxf2 {[%clk 0:00:12]} 63. Bxf2 {[%clk 0:00:12]}  Kxf2 {[%clk 0:00:13]} 64. Kc4 {[%clk 0:00:11]}  g3 {[%clk 0:00:13]} 65. Kc5 {[%clk 0:00:12]}  g2 {[%clk 0:00:14]} 66. Kxc6 {[%clk 0:00:13]}  g1=Q {[%clk 0:00:14]} 67. Kxc7 {[%clk 0:00:11]}  Qb1 {[%clk 0:00:14]} 0-1

[Event "January 2 Late 2024"]
[Site "https://www.chess.com"]
[Date "2024.01.02"]
[Round "9"]
[White "Suvorov, Luca"]
[Black "Lalanne, Pablo"]
[Result "1/2-1/2"]
[Board "94"]
[TimeControl "180+1"]
[WhiteFideId "12977071"]
[BlackFideId "112151"]
[WhiteElo "2515"]
[BlackElo "2320"]
[WhiteTeam "GER"]
[BlackTeam "ARG"]
[WhiteClock "0:00:10"]
[BlackClock "0:00:14"]

1. Nf3 {[%clk 0:03:00]}  c5 {[%clk 0:02:58]} 2. g3 {[%clk 0:02:55]}  d5 {[%clk 0:02:55]} 3. Bg2 {[%clk 0:02:55]}  Nf6 {[%clk 0:02:56]} 4. O-O {[%clk 0:02:56]}  e6 {[%clk 0:02:56]} 5. d3 {[%clk 0:02:56]}  Nc6 {[%clk 0:02:57]} 6. Nbd2 {[%clk 0:02:50]}  Be7 {[%clk 0:02:56]} 7. e4 {[%clk 0:02:50]}  O-O {[%clk 0:02:55]} 8. Re1 {[%clk 0:02:48]}  b5 {[%clk 0:02:30]} 9. e5 {[%clk 0:02:46]}  Nd7 {[%clk 0:02:29]} 10. Nf1 {[%clk 0:02:46]}  Qc7 {[%clk 0:02:26]} 11. Bf4 {[%clk 0:02:45]}  Bb7 {[%clk 0:02:21]} 12. h4 {[%clk 0:02:45]}  d4 {[%clk 0:02:19]} 13. h5 {[%clk 0:02:39]}  h6 {[%clk 0:02:07]} 14. N1h2 {[%clk 0:02:36]}  Nb6 {[%clk 0:02:05]} 15. Ng4 {[%clk 0:02:36]}  Nd5 {[%clk 0:01:54]} 16. Qd2 {[%clk 0:02:16]}  Nxf4 {[%clk 0:01:53]} 17. Qxf4 {[%clk 0:02:17]}  Kh7 {[%clk 0:01:51]} 18. a4 {[%clk 0:02:13]}  Nb4 {[%clk 0:01:49]} 19. Qd2 {[%clk 0:01:59]}  a6 {[%clk 0:01:39]} 20. c3 {[%clk 0:01:58]}  dxc3 {[%clk 0:01:36]} 21. bxc3 {[%clk 0:01:59]}  Nd5 {[%clk 0:01:33]} 22. c4 {[%clk 0:01:42]}  bxc4 {[%clk 0:01:23]} 23. dxc4 {[%clk 0:01:43]}  Nb4 {[%clk 0:01:15]} 24. Red1 {[%clk 0:01:24]}  Rad8 {[%clk 0:01:13]} 25. Qf4 {[%clk 0:01:22]}  Bc6 {[%clk 0:00:42]} 26. Nd2 {[%clk 0:00:48]}  Bxg2 {[%clk 0:00:38]} 27. Kxg2 {[%clk 0:00:49]}  Qc6+ {[%clk 0:00:38]} 28. Ne4 {[%clk 0:00:47]}  Bg5 {[%clk 0:00:28]} 29. Qf3 {[%clk 0:00:43]}  Rd4 {[%clk 0:00:18]} 30. Rxd4 {[%clk 0:00:36]}  cxd4 {[%clk 0:00:17]} 31. Rb1 {[%clk 0:00:36]}  Qxa4 {[%clk 0:00:14]} 32. Nxg5+ {[%clk 0:00:30]}  hxg5 {[%clk 0:00:15]} 33. Qe4+ {[%clk 0:00:31]}  Kh8 {[%clk 0:00:15]} 34. h6 {[%clk 0:00:31]}  Qc2 {[%clk 0:00:10]} 35. hxg7+ {[%clk 0:00:18]}  Kxg7 {[%clk 0:00:11]} 36. Nf6 {[%clk 0:00:07]}  Qxe4+ {[%clk 0:00:10]} 37. Nxe4 {[%clk 0:00:08]}  Nc6 {[%clk 0:00:09]} 38. f4 {[%clk 0:00:06]}  gxf4 {[%clk 0:00:09]} 39. gxf4 {[%clk 0:00:07]}  f5 {[%clk 0:00:08]} 40. Nc5 {[%clk 0:00:06]}  Re8 {[%clk 0:00:06]} 41. Kf3 {[%clk 0:00:06]}  a5 {[%clk 0:00:06]} 42. Rb6 {[%clk 0:00:07]}  Nb4 {[%clk 0:00:06]} 43. Rb7+ {[%clk 0:00:07]}  Kg6 {[%clk 0:00:06]} 44. Nd7 {[%clk 0:00:06]}  Rc8 {[%clk 0:00:06]} 45. c5 {[%clk 0:00:06]}  d3 {[%clk 0:00:06]} 46. Ke3 {[%clk 0:00:06]}  Nd5+ {[%clk 0:00:04]} 47. Kxd3 {[%clk 0:00:06]}  Nxf4+ {[%clk 0:00:04]} 48. Kc4 {[%clk 0:00:07]}  Nd5 {[%clk 0:00:04]} 49. Ra7 {[%clk 0:00:04]}  Rc7 {[%clk 0:00:03]} 50. Rxc7 {[%clk 0:00:03]}  Nxc7 {[%clk 0:00:04]} 51. Nf8+ {[%clk 0:00:03]}  Kf7 {[%clk 0:00:04]} 52. Nd7 {[%clk 0:00:03]}  f4 {[%clk 0:00:05]} 53. Nb6 {[%clk 0:00:04]}  f3 {[%clk 0:00:05]} 54. Kd3 {[%clk 0:00:04]}  Na6 {[%clk 0:00:04]} 55. c6 {[%clk 0:00:04]}  Nc5+ {[%clk 0:00:04]} 56. Ke3 {[%clk 0:00:04]}  Na6 {[%clk 0:00:04]} 57. Na8 {[%clk 0:00:04]}  a4 {[%clk 0:00:03]} 58. c7 {[%clk 0:00:04]}  Nxc7 {[%clk 0:00:04]} 59. Nxc7 {[%clk 0:00:05]}  a3 {[%clk 0:00:05]} 60. Nb5 {[%clk 0:00:03]}  a2 {[%clk 0:00:06]} 61. Nd6+ {[%clk 0:00:03]}  Kg8 {[%clk 0:00:05]} 62. Kxf3 {[%clk 0:00:04]}  a1=Q {[%clk 0:00:05]} 63. Kf4 {[%clk 0:00:05]}  Qd4+ {[%clk 0:00:06]} 64. Ne4 {[%clk 0:00:05]}  Qd5 {[%clk 0:00:05]} 65. Nf6+ {[%clk 0:00:04]}  Kf7 {[%clk 0:00:05]} 66. Nxd5 {[%clk 0:00:05]}  exd5 {[%clk 0:00:06]} 67. Kf5 {[%clk 0:00:05]}  Ke7 {[%clk 0:00:06]} 68. Kf4 {[%clk 0:00:05]}  Ke6 {[%clk 0:00:07]} 69. Ke3 {[%clk 0:00:06]}  Kxe5 {[%clk 0:00:08]} 70. Kd3 {[%clk 0:00:06]}  d4 {[%clk 0:00:08]} 71. Kd2 {[%clk 0:00:07]}  Kd5 {[%clk 0:00:08]} 72. Kd3 {[%clk 0:00:07]}  Ke5 {[%clk 0:00:09]} 73. Kd2 {[%clk 0:00:08]}  Ke4 {[%clk 0:00:10]} 74. Ke2 {[%clk 0:00:08]}  d3+ {[%clk 0:00:10]} 75. Kd2 {[%clk 0:00:09]}  Kd4 {[%clk 0:00:11]} 76. Kd1 {[%clk 0:00:09]}  Ke3 {[%clk 0:00:12]} 77. Ke1 {[%clk 0:00:09]}  d2+ {[%clk 0:00:13]} 78. Kd1 {[%clk 0:00:10]}  Kd3 {[%clk 0:00:14]} 1/2-1/2

[Event "January 2 Late 2024"]
[Site "https://www.chess.com"]
[Date "2024.01.02"]
[Round "9"]
[White "Salazar Farias, Luis German"]
[Black "Zampronha, Wladimir Camilo"]
[Result "1-0"]
[Board "95"]
[TimeControl "180+1"]
[WhiteFideId "3902170"]
[BlackFideId "2103087"]
[WhiteElo "2509"]
[BlackElo "2339"]
[WhiteTeam "VEN"]
[BlackTeam "BRA"]
[WhiteClock "0:01:09"]
[BlackClock "0:01:33"]

1. d4 {[%clk 0:02:51]}  Nf6 {[%clk 0:02:59]} 2. c4 {[%clk 0:02:50]}  e6 {[%clk 0:02:59]} 3. Nf3 {[%clk 0:02:51]}  c5 {[%clk 0:02:58]} 4. d5 {[%clk 0:02:51]}  exd5 {[%clk 0:02:58]} 5. cxd5 {[%clk 0:02:51]}  d6 {[%clk 0:02:59]} 6. Nc3 {[%clk 0:02:50]}  g6 {[%clk 0:02:59]} 7. Nd2 {[%clk 0:02:50]}  Bg7 {[%clk 0:02:59]} 8. e4 {[%clk 0:02:51]}  O-O {[%clk 0:02:59]} 9. Be2 {[%clk 0:02:51]}  Re8 {[%clk 0:03:00]} 10. O-O {[%clk 0:02:50]}  a6 {[%clk 0:03:00]} 11. a4 {[%clk 0:02:50]}  Nbd7 {[%clk 0:02:58]} 12. f4 {[%clk 0:02:50]}  Qc7 {[%clk 0:02:45]} 13. Kh1 {[%clk 0:02:48]}  Rb8 {[%clk 0:02:43]} 14. e5 {[%clk 0:02:41]}  dxe5 {[%clk 0:02:42]} 15. Nc4 {[%clk 0:02:41]}  e4 {[%clk 0:02:36]} 16. f5 {[%clk 0:02:38]}  Nb6 {[%clk 0:02:29]} 17. Bf4 {[%clk 0:02:32]}  Qd8 {[%clk 0:02:27]} 18. Bxb8 {[%clk 0:02:21]}  Nxc4 {[%clk 0:02:26]} 19. Bxc4 {[%clk 0:02:20]}  Bxf5 {[%clk 0:02:26]} 20. Bg3 {[%clk 0:02:17]}  e3 {[%clk 0:02:24]} 21. d6 {[%clk 0:02:09]}  Qb6 {[%clk 0:02:22]} 22. Rxf5 {[%clk 0:01:52]}  gxf5 {[%clk 0:02:21]} 23. Nd5 {[%clk 0:01:53]}  Nxd5 {[%clk 0:02:15]} 24. Qxd5 {[%clk 0:01:51]}  Rf8 {[%clk 0:02:07]} 25. d7 {[%clk 0:01:47]}  Qxb2 {[%clk 0:02:07]} 26. Qxf7+ {[%clk 0:01:36]}  Rxf7 {[%clk 0:02:04]} 27. d8=Q+ {[%clk 0:01:36]}  Bf8 {[%clk 0:02:05]} 28. Re1 {[%clk 0:01:25]}  Qd2 {[%clk 0:01:33]} 29. Qe8 {[%clk 0:01:09]} 1-0

[Event "January 2 Late 2024"]
[Site "https://www.chess.com"]
[Date "2024.01.02"]
[Round "9"]
[White "Shapiro, Viktor"]
[Black "Slavin, Alexey"]
[Result "0-1"]
[Board "97"]
[TimeControl "180+1"]
[WhiteFideId "4175700"]
[BlackFideId "24104388"]
[WhiteElo "2503"]
[BlackElo "2282"]
[WhiteTeam "RUS"]
[BlackTeam "RUS"]
[WhiteClock "0:00:00"]
[BlackClock "0:00:37"]

1. c4 {[%clk 0:02:54]}  Nc6 {[%clk 0:02:59]} 2. Nc3 {[%clk 0:02:54]}  Ne5 {[%clk 0:02:59]} 3. e3 {[%clk 0:02:51]}  Ng6 {[%clk 0:02:59]} 4. h4 {[%clk 0:02:50]}  e5 {[%clk 0:02:58]} 5. h5 {[%clk 0:02:50]}  N6e7 {[%clk 0:02:58]} 6. Nf3 {[%clk 0:02:50]}  d6 {[%clk 0:02:58]} 7. d4 {[%clk 0:02:50]}  Nc6 {[%clk 0:02:56]} 8. d5 {[%clk 0:02:27]}  Nce7 {[%clk 0:02:56]} 9. e4 {[%clk 0:02:24]}  h6 {[%clk 0:02:55]} 10. Be2 {[%clk 0:02:21]}  Nf6 {[%clk 0:02:55]} 11. Nh4 {[%clk 0:02:05]}  Bd7 {[%clk 0:02:55]} 12. g4 {[%clk 0:02:05]}  Nh7 {[%clk 0:02:53]} 13. Nf5 {[%clk 0:02:03]}  Bxf5 {[%clk 0:02:53]} 14. gxf5 {[%clk 0:02:03]}  Ng8 {[%clk 0:02:49]} 15. Be3 {[%clk 0:02:01]}  Be7 {[%clk 0:02:49]} 16. Rg1 {[%clk 0:01:56]}  Bg5 {[%clk 0:02:49]} 17. Qd2 {[%clk 0:01:46]}  Bxe3 {[%clk 0:02:43]} 18. Qxe3 {[%clk 0:01:46]}  Ng5 {[%clk 0:02:43]} 19. c5 {[%clk 0:01:42]}  a6 {[%clk 0:02:41]} 20. O-O-O {[%clk 0:01:39]}  Nf6 {[%clk 0:02:35]} 21. Kb1 {[%clk 0:01:32]}  Nfh7 {[%clk 0:02:33]} 22. f4 {[%clk 0:01:24]}  exf4 {[%clk 0:02:32]} 23. Qxf4 {[%clk 0:01:24]}  O-O {[%clk 0:02:30]} 24. e5 {[%clk 0:01:14]}  dxe5 {[%clk 0:02:27]} 25. Qxe5 {[%clk 0:01:14]}  Re8 {[%clk 0:02:23]} 26. Qf4 {[%clk 0:01:11]}  Qf6 {[%clk 0:02:09]} 27. d6 {[%clk 0:01:02]}  cxd6 {[%clk 0:02:06]} 28. cxd6 {[%clk 0:00:57]}  Rad8 {[%clk 0:01:42]} 29. Rd5 {[%clk 0:00:48]}  b5 {[%clk 0:01:36]} 30. Rgd1 {[%clk 0:00:44]}  b4 {[%clk 0:01:36]} 31. Qxb4 {[%clk 0:00:43]}  Nf8 {[%clk 0:01:25]} 32. Bxa6 {[%clk 0:00:34]}  Re5 {[%clk 0:01:25]} 33. Rxe5 {[%clk 0:00:21]}  Qxe5 {[%clk 0:01:25]} 34. Rd5 {[%clk 0:00:21]}  Qe1+ {[%clk 0:01:24]} 35. Kc2 {[%clk 0:00:20]}  Nf3 {[%clk 0:01:04]} 36. Qf4 {[%clk 0:00:11]}  Qh1 {[%clk 0:00:44]} 37. Be2 {[%clk 0:00:09]}  Ng5 {[%clk 0:00:42]} 38. a4 {[%clk 0:00:08]}  Nd7 {[%clk 0:00:39]} 39. Qd4 {[%clk 0:00:07]}  Rc8 {[%clk 0:00:38]} 40. Bb5 {[%clk 0:00:07]}  Nf6 {[%clk 0:00:38]} 41. d7 {[%clk 0:00:06]}  Rd8 {[%clk 0:00:37]} 42. Rd6 {[%clk 0:00:06]}  Nf3 {[%clk 0:00:36]} 43. Qd3 {[%clk 0:00:04]}  Ne1+ {[%clk 0:00:36]} 44. Kb3 {[%clk 0:00:04]}  Nxd3 {[%clk 0:00:37]} 45. Rxd3 {[%clk 0:00:00]}  Qb7 {[%clk 0:00:37]} 0-1

[Event "January 2 Late 2024"]
[Site "https://www.chess.com"]
[Date "2024.01.02"]
[Round "9"]
[White "Kovacevic, Radmila"]
[Black "Mazi, Leon"]
[Result "0-1"]
[Board "98"]
[TimeControl "180+1"]
[WhiteFideId "933171"]
[BlackFideId "14600315"]
[WhiteElo "2200"]
[BlackElo "2502"]
[WhiteTeam "SRB"]
[BlackTeam "SLO"]
[WhiteClock "0:00:00"]
[BlackClock "0:00:22"]

1. e4 {[%clk 0:02:57]}  c5 {[%clk 0:02:56]} 2. Nf3 {[%clk 0:02:57]}  Nc6 {[%clk 0:02:54]} 3. c3 {[%clk 0:02:56]}  Nf6 {[%clk 0:02:53]} 4. e5 {[%clk 0:02:57]}  Nd5 {[%clk 0:02:52]} 5. d4 {[%clk 0:02:57]}  cxd4 {[%clk 0:02:52]} 6. cxd4 {[%clk 0:02:54]}  d6 {[%clk 0:02:51]} 7. Bc4 {[%clk 0:02:54]}  Nb6 {[%clk 0:02:50]} 8. Bxf7+ {[%clk 0:02:52]}  Kxf7 {[%clk 0:02:49]} 9. Ng5+ {[%clk 0:02:53]}  Kg8 {[%clk 0:02:37]} 10. Qf3 {[%clk 0:02:51]}  Qe8 {[%clk 0:02:36]} 11. e6 {[%clk 0:02:49]}  Nd8 {[%clk 0:02:35]} 12. d5 {[%clk 0:02:45]}  h6 {[%clk 0:02:28]} 13. Nh3 {[%clk 0:02:45]}  g5 {[%clk 0:02:18]} 14. O-O {[%clk 0:02:34]}  Bg7 {[%clk 0:02:18]} 15. Rd1 {[%clk 0:02:33]}  Qg6 {[%clk 0:02:15]} 16. g4 {[%clk 0:02:25]}  Kh7 {[%clk 0:02:12]} 17. Nc3 {[%clk 0:02:16]}  Rf8 {[%clk 0:02:10]} 18. Qe2 {[%clk 0:02:09]}  Bxc3 {[%clk 0:01:55]} 19. bxc3 {[%clk 0:02:10]}  Na4 {[%clk 0:01:55]} 20. Rd3 {[%clk 0:01:33]}  b6 {[%clk 0:01:53]} 21. Re3 {[%clk 0:01:17]}  Bb7 {[%clk 0:01:48]} 22. Qc4 {[%clk 0:01:14]}  Nc5 {[%clk 0:01:45]} 23. Qd4 {[%clk 0:01:08]}  Ba6 {[%clk 0:01:35]} 24. Bd2 {[%clk 0:00:56]}  Ndb7 {[%clk 0:01:35]} 25. Rae1 {[%clk 0:00:47]}  Na5 {[%clk 0:01:34]} 26. Rg3 {[%clk 0:00:47]}  Nd3 {[%clk 0:01:23]} 27. Nxg5+ {[%clk 0:00:46]}  Kg8 {[%clk 0:01:15]} 28. Nf7 {[%clk 0:00:34]}  Rxf7 {[%clk 0:00:59]} 29. exf7+ {[%clk 0:00:35]}  Kxf7 {[%clk 0:00:59]} 30. Re6 {[%clk 0:00:23]}  Qh7 {[%clk 0:00:56]} 31. Rf3+ {[%clk 0:00:20]}  Ke8 {[%clk 0:00:55]} 32. Rxh6 {[%clk 0:00:18]}  Ne5 {[%clk 0:00:48]} 33. Re3 {[%clk 0:00:12]}  Qxh6 {[%clk 0:00:43]} 34. Rxe5 {[%clk 0:00:12]}  Qg7 {[%clk 0:00:43]} 35. Qa4+ {[%clk 0:00:09]}  Kd8 {[%clk 0:00:37]} 36. Re3 {[%clk 0:00:09]}  Qg8 {[%clk 0:00:34]} 37. Qe4 {[%clk 0:00:08]}  Qg7 {[%clk 0:00:30]} 38. Rh3 {[%clk 0:00:07]}  Nc4 {[%clk 0:00:27]} 39. Bc1 {[%clk 0:00:06]}  Ne5 {[%clk 0:00:26]} 40. f3 {[%clk 0:00:05]}  Rc8 {[%clk 0:00:25]} 41. Rh7 {[%clk 0:00:05]}  Qg8 {[%clk 0:00:23]} 42. Bd2 {[%clk 0:00:00]}  Rc4 {[%clk 0:00:22]} 0-1

[Event "January 2 Late 2024"]
[Site "https://www.chess.com"]
[Date "2024.01.02"]
[Round "9"]
[White "Gardezi, Arsal"]
[Black "Blanco Diez, David"]
[Result "0-1"]
[Board "99"]
[TimeControl "180+1"]
[WhiteFideId "30949521"]
[BlackFideId "32032927"]
[WhiteElo "2161"]
[BlackElo "2437"]
[WhiteTeam "USA"]
[BlackTeam "ESP"]
[WhiteClock "0:00:10"]
[BlackClock "0:00:05"]

1. d4 {[%clk 0:02:52]}  d5 {[%clk 0:02:59]} 2. Nf3 {[%clk 0:02:51]}  Nf6 {[%clk 0:02:59]} 3. Bf4 {[%clk 0:02:52]}  c5 {[%clk 0:02:59]} 4. c3 {[%clk 0:02:51]}  Nc6 {[%clk 0:02:59]} 5. Nbd2 {[%clk 0:02:49]}  cxd4 {[%clk 0:02:56]} 6. cxd4 {[%clk 0:02:49]}  Bf5 {[%clk 0:02:56]} 7. a3 {[%clk 0:02:49]}  e6 {[%clk 0:02:55]} 8. e3 {[%clk 0:02:49]}  h6 {[%clk 0:02:55]} 9. Bb5 {[%clk 0:02:40]}  Bd6 {[%clk 0:02:43]} 10. Ne5 {[%clk 0:02:32]}  Rc8 {[%clk 0:02:43]} 11. Rc1 {[%clk 0:02:31]}  O-O {[%clk 0:02:39]} 12. Bxc6 {[%clk 0:02:17]}  bxc6 {[%clk 0:02:38]} 13. Nxc6 {[%clk 0:02:18]}  Qd7 {[%clk 0:02:30]} 14. Bxd6 {[%clk 0:02:11]}  Qxd6 {[%clk 0:02:27]} 15. Ne5 {[%clk 0:02:06]}  Qa6 {[%clk 0:02:07]} 16. Nb3 {[%clk 0:01:57]}  Ne4 {[%clk 0:01:11]} 17. Nd7 {[%clk 0:01:50]}  Rfd8 {[%clk 0:01:03]} 18. Ndc5 {[%clk 0:01:49]}  Qb5 {[%clk 0:00:56]} 19. Nxe4 {[%clk 0:01:24]}  Bxe4 {[%clk 0:00:57]} 20. Nc5 {[%clk 0:00:58]}  Qxb2 {[%clk 0:00:53]} 21. O-O {[%clk 0:00:57]}  Qxa3 {[%clk 0:00:39]} 22. Ra1 {[%clk 0:00:57]}  Qb4 {[%clk 0:00:34]} 23. Rxa7 {[%clk 0:00:57]}  Bg6 {[%clk 0:00:32]} 24. Qg4 {[%clk 0:00:54]}  Qb6 {[%clk 0:00:30]} 25. Rfa1 {[%clk 0:00:47]}  Qd6 {[%clk 0:00:27]} 26. R7a6 {[%clk 0:00:23]}  Rc6 {[%clk 0:00:12]} 27. Ra7 {[%clk 0:00:19]}  h5 {[%clk 0:00:10]} 28. Qg5 {[%clk 0:00:18]}  Kh7 {[%clk 0:00:09]} 29. Nb7 {[%clk 0:00:18]}  Qc7 {[%clk 0:00:07]} 30. h4 {[%clk 0:00:13]}  Rc1+ {[%clk 0:00:07]} 31. Rxc1 {[%clk 0:00:12]}  Qxc1+ {[%clk 0:00:08]} 32. Kh2 {[%clk 0:00:12]}  Rd7 {[%clk 0:00:08]} 33. Ra8 {[%clk 0:00:10]}  Rxb7 {[%clk 0:00:07]} 34. Qd8 {[%clk 0:00:11]}  Qc7+ {[%clk 0:00:05]} 35. Qxc7 {[%clk 0:00:11]}  Rxc7 {[%clk 0:00:05]} 36. Kg3 {[%clk 0:00:11]}  Be4 {[%clk 0:00:06]} 37. f3 {[%clk 0:00:11]}  Bd3 {[%clk 0:00:06]} 38. Kf4 {[%clk 0:00:12]}  Bg6 {[%clk 0:00:06]} 39. Rf8 {[%clk 0:00:12]}  f6 {[%clk 0:00:06]} 40. g4 {[%clk 0:00:12]}  hxg4 {[%clk 0:00:06]} 41. fxg4 {[%clk 0:00:13]}  Rf7 {[%clk 0:00:06]} 42. Re8 {[%clk 0:00:13]}  e5+ {[%clk 0:00:03]} 43. dxe5 {[%clk 0:00:13]}  fxe5+ {[%clk 0:00:04]} 44. Kxe5 {[%clk 0:00:14]}  Rf3 {[%clk 0:00:04]} 45. Kxd5 {[%clk 0:00:14]}  Rg3 {[%clk 0:00:05]} 46. h5 {[%clk 0:00:10]}  Bxe8 {[%clk 0:00:05]} 0-1

[Event "January 2 Late 2024"]
[Site "https://www.chess.com"]
[Date "2024.01.02"]
[Round "9"]
[White "Hamidi, Amir Mohammad"]
[Black "Caglar, Sila"]
[Result "0-1"]
[Board "100"]
[TimeControl "180+1"]
[WhiteFideId "12563285"]
[BlackFideId "6364063"]
[WhiteElo "2670"]
[BlackElo "2415"]
[WhiteTeam "IRI"]
[BlackTeam "TUR"]
[WhiteClock "0:00:00"]
[BlackClock "0:00:14"]

1. Nf3 {[%clk 0:03:00]}  Nf6 {[%clk 0:02:57]} 2. c4 {[%clk 0:03:01]}  d6 {[%clk 0:02:57]} 3. g3 {[%clk 0:03:01]}  g6 {[%clk 0:02:58]} 4. Bg2 {[%clk 0:03:01]}  Bg7 {[%clk 0:02:58]} 5. O-O {[%clk 0:03:02]}  O-O {[%clk 0:02:59]} 6. Nc3 {[%clk 0:03:02]}  e5 {[%clk 0:03:00]} 7. d3 {[%clk 0:03:03]}  Re8 {[%clk 0:03:00]} 8. Rb1 {[%clk 0:03:04]}  c6 {[%clk 0:03:01]} 9. b4 {[%clk 0:03:04]}  d5 {[%clk 0:03:00]} 10. b5 {[%clk 0:03:02]}  Nbd7 {[%clk 0:02:51]} 11. bxc6 {[%clk 0:03:01]}  bxc6 {[%clk 0:02:52]} 12. Bg5 {[%clk 0:03:01]}  h6 {[%clk 0:02:51]} 13. Bxf6 {[%clk 0:03:01]}  Nxf6 {[%clk 0:02:50]} 14. cxd5 {[%clk 0:03:01]}  cxd5 {[%clk 0:02:50]} 15. e3 {[%clk 0:03:02]}  Bg4 {[%clk 0:02:46]} 16. Qa4 {[%clk 0:03:00]}  Bf5 {[%clk 0:02:34]} 17. Rfd1 {[%clk 0:02:51]}  Qe7 {[%clk 0:02:28]} 18. Nh4 {[%clk 0:02:47]}  Bg4 {[%clk 0:02:27]} 19. Rdc1 {[%clk 0:02:33]}  Be6 {[%clk 0:02:23]} 20. Qa5 {[%clk 0:02:21]}  Red8 {[%clk 0:02:12]} 21. Nf3 {[%clk 0:02:11]}  e4 {[%clk 0:02:08]} 22. dxe4 {[%clk 0:02:10]}  dxe4 {[%clk 0:02:08]} 23. Nd4 {[%clk 0:02:08]}  Bd7 {[%clk 0:01:49]} 24. Rb7 {[%clk 0:01:59]}  Rac8 {[%clk 0:01:40]} 25. Rcb1 {[%clk 0:01:37]}  Qc5 {[%clk 0:01:29]} 26. Qxc5 {[%clk 0:01:20]}  Rxc5 {[%clk 0:01:30]} 27. Nxe4 {[%clk 0:01:11]}  Ra5 {[%clk 0:01:25]} 28. Nd6 {[%clk 0:00:51]}  Rxa2 {[%clk 0:01:20]} 29. Rb8 {[%clk 0:00:33]}  Rxb8 {[%clk 0:01:19]} 30. Rxb8+ {[%clk 0:00:34]}  Bf8 {[%clk 0:01:19]} 31. Rb7 {[%clk 0:00:19]}  Bxd6 {[%clk 0:01:16]} 32. Bd5 {[%clk 0:00:08]}  Ra5 {[%clk 0:00:50]} 33. Bb3 {[%clk 0:00:06]}  Be5 {[%clk 0:00:28]} 34. Nf3 {[%clk 0:00:03]}  Bc3 {[%clk 0:00:17]} 35. Kf1 {[%clk 0:00:00]}  Rb5 {[%clk 0:00:14]} 0-1